fUSD/lending_fUSD_20240212
["ID","MTS","AMOUNT","RATE_DAILY","PERIOD"]
[313885830,1707769896999,-500.0,0.00034794,2]
[313885831,1707769897009,-500.0,0.00034794,2]
[313885832,1707769897019,-500.0,0.00034794,2]
[313885833,1707769897028,-500.0,0.00034794,2]
[313885834,1707769897038,-500.0,0.00034794,2]
[313885835,1707769897047,-500.0,0.00034794,2]
[313885836,1707769897057,-500.0,0.00034794,2]
[313885837,1707769897066,-500.22,0.00034794,2]
[313885838,1707769897076,-500.0,0.00034794,2]
[313885839,1707769897085,-500.0,0.00034794,2]
[313885840,1707769897095,-500.0,0.00034794,2]
[313885841,1707769897104,-500.0,0.00034794,2]
[313885842,1707769897113,-580.77,0.00034794,2]
[313885843,1707769897122,-630.5,0.00034794,2]
[313885844,1707769897131,-500.0,0.00034794,2]
[313885845,1707769897140,-952.06,0.00034794,2]
[313885846,1707769897150,-500.0,0.00034794,2]
[313885847,1707769897159,-500.0,0.00034794,2]
[313885848,1707769897168,-500.0,0.00034794,2]
[313885849,1707769897177,-500.0,0.00034794,2]
[313885850,1707769897187,-500.0,0.00034794,2]
[313885851,1707769897196,-538.47,0.00034794,2]
[313885852,1707769897206,-500.0,0.00034794,2]
[313885853,1707769897215,-500.0,0.00034794,2]
[313885854,1707769897225,-500.0,0.00034794,2]
[313885855,1707769897235,-1235.07,0.00034794,2]
[313885856,1707769897244,-500.0,0.00034794,2]
[313885857,1707769897254,-1451.3,0.00034794,5]
[313885858,1707769897263,-500.0,0.00034794,2]
[313885859,1707769897272,-500.0,0.00034794,2]
[313885860,1707769897282,-500.0,0.00034794,2]
[313885861,1707769897292,-500.0,0.00034794,2]
[313885862,1707769897302,-500.0,0.00034794,2]
[313885863,1707769897311,-500.0,0.00034794,2]
[313885864,1707769897320,-1080.75,0.00034794,2]
[313885865,1707769897330,-500.0,0.00034794,2]
[313885866,1707769897339,-728.15,0.00034794,2]
[313885867,1707769897348,-500.0,0.00034794,2]
[313885868,1707769897358,-796.14,0.00034794,2]
[313885869,1707769897370,-588.98,0.00034794,2]
[313885870,1707769897379,-261.79,0.00034794,2]
[313885871,1707769897389,-5409.76,0.00034794,2]
[313885872,1707769897398,-500.0,0.00034794,2]
[313885873,1707769897409,-500.0,0.00034794,2]
[313885874,1707769897419,-500.0,0.00034794,2]
[313885875,1707769897428,-500.0,0.00034794,2]
[313885876,1707769897438,-533.85,0.00034794,2]
[313885877,1707769897447,-500.0,0.00034794,2]
[313885878,1707769897457,-1331.32,0.00034794,2]
[313885879,1707769897467,-917.05,0.00034794,2]
[313885880,1707769897476,-500.0,0.00034794,2]
[313885881,1707769897485,-3280.01,0.00034794,2]
[313885882,1707769897495,-9977.66,0.00034794,2]
[313885883,1707769897504,-500.0,0.00034794,2]
[313885884,1707769897513,-500.0,0.00034794,2]
[313885885,1707769897523,-4143.77,0.00034794,2]
[313885886,1707769897532,-5964.37,0.00034794,2]
[313885887,1707769897542,-500.0,0.00034794,2]
[313885888,1707769897551,-500.0,0.00034794,2]
[313885889,1707769897561,-695.09,0.00034794,2]
[313885890,1707769897575,-500.0,0.00034794,2]
[313885891,1707769897585,-561.48,0.00034794,2]
[313885892,1707769897594,-500.0,0.00034794,2]
[313885893,1707769897604,-843.63,0.00034794,2]
[313885894,1707769897614,-620.24273767,0.00034794,2]
[313885895,1707769897623,-500.0,0.00034794,2]
[313885896,1707769897633,-984.81,0.00034794,2]
[313885897,1707769897643,-500.0,0.00034794,2]
[313885898,1707769897653,-258.78,0.00034794,2]
[313885899,1707769897662,-500.0,0.00034794,2]
[313885900,1707769897672,-500.0,0.00034794,2]
[313885901,1707769897681,-1158.95,0.00034794,2]
[313885902,1707769897691,-500.0,0.00034794,2]
[313885903,1707769897700,-500.0,0.00034794,2]
[313885904,1707769897711,-500.0,0.00034794,2]
[313885905,1707769897723,-2406.89,0.00034794,2]
[313885906,1707769897733,-189.29669285,0.00034794,2]
[313885907,1707769897743,-500.0,0.00034794,2]
[313885908,1707769897753,-578.56,0.00034794,2]
[313885909,1707769897763,-500.0,0.00034794,2]
[313885910,1707769897772,-500.0,0.00034794,2]
[313885911,1707769897782,-500.0,0.00034794,2]
[313885912,1707769897792,-500.0,0.00034794,2]
[313885913,1707769897803,-500.0,0.00034794,2]
[313885914,1707769897815,-819.76,0.00034794,2]
[313885915,1707769897825,-500.0,0.00034794,2]
[313885916,1707769897836,-500.0,0.00034794,2]
[313885917,1707769897848,-500.0,0.00034794,2]
[313885918,1707769897858,-500.0,0.00034794,2]
[313885919,1707769897869,-1375.77,0.00034794,2]
[313885920,1707769897879,-4244.4,0.00034794,2]
[313885921,1707769897890,-500.0,0.00034794,2]
[313885922,1707769897901,-500.0,0.00034794,2]
[313885923,1707769897912,-500.0,0.00034794,2]
[313885924,1707769897923,-500.0,0.00034794,2]
[313885925,1707769897934,-500.0,0.00034794,2]
[313885926,1707769897944,-500.0,0.00034794,2]
[313885927,1707769897955,-500.0,0.00034794,2]
[313885928,1707769897965,-846.93,0.00034794,2]
[313885929,1707769897976,-272.42915393,0.00034794,2]
[313885930,1707769897987,-500.0,0.00034794,2]
[313885931,1707769897998,-3071.04,0.00034794,2]
[313885932,1707769898008,-728.9,0.00034794,2]
[313885933,1707769898017,-500.0,0.00034794,2]
[313885934,1707769898028,-616.73,0.00034794,2]
[313885935,1707769898037,-500.0,0.00034794,2]
[313885936,1707769898047,-500.0,0.00034794,2]
[313885937,1707769898057,-500.0,0.00034794,2]
[313885938,1707769898066,-560.54,0.00034794,2]
[313885939,1707769898076,-1820.56,0.00034794,2]
[313885940,1707769898085,-500.0,0.00034794,2]
[313885941,1707769898095,-743.91,0.00034794,2]
[313885942,1707769898105,-500.0,0.00034794,2]
[313885943,1707769898114,-500.0,0.00034794,2]
[313885944,1707769898124,-1028.39,0.00034794,2]
[313885945,1707769898134,-735.16,0.00034794,2]
[313885946,1707769898143,-1049.27,0.00034794,2]
[313885947,1707769898153,-4338.57,0.00034794,2]
[313885948,1707769898162,-500.0,0.00034794,2]
[313885949,1707769898172,-314.48069263,0.00034794,2]
[313885950,1707769898182,-2013.56,0.00034794,2]
[313885951,1707769898191,-500.0,0.00034794,2]
[313885952,1707769898201,-1012.67,0.00034794,2]
[313885953,1707769898211,-1445.06,0.00034794,2]
[313885954,1707769898221,-500.0,0.00034794,2]
[313885955,1707769898230,-500.0,0.00034794,2]
[313885956,1707769898239,-1677.14,0.00034794,2]
[313885957,1707769898248,-500.0,0.00034794,2]
[313885958,1707769898258,-951.75,0.00034794,2]
[313885959,1707769898267,-1575.25,0.00034794,2]
[313885960,1707769898277,-1311.14,0.00034794,2]
[313885961,1707769898286,-1386.13,0.00034794,2]
[313885962,1707769898296,-500.0,0.00034794,2]
[313885963,1707769898305,-893.85,0.00034794,2]
[313885964,1707769898314,-500.0,0.00034794,2]
[313885965,1707769898323,-1280.91,0.00034794,2]
[313885966,1707769898332,-500.0,0.00034794,2]
[313885967,1707769898375,-500.0,0.00034794,2]
[313885968,1707769898385,-7777.87,0.00034794,2]
[313885969,1707769898393,-501.05,0.00034794,2]
[313885970,1707769898403,-502.28,0.00034794,2]
[313885971,1707769898412,-500.0,0.00034794,2]
[313885972,1707769898422,-814.8,0.00034794,2]
[313885973,1707769898431,-961.32,0.00034794,2]
[313885974,1707769898440,-500.0,0.00034794,2]
[313885975,1707769898449,-500.0,0.00034794,2]
[313885976,1707769898459,-500.0,0.00034794,2]
[313885977,1707769898468,-551.08,0.00034794,2]
[313885978,1707769898478,-500.0,0.00034794,2]
[313885979,1707769898487,-500.0,0.00034794,2]
[313885980,1707769898497,-500.0,0.00034794,2]
[313885981,1707769898506,-812.86,0.00034794,2]
[313885982,1707769898516,-500.0,0.00034794,2]
[313885983,1707769898526,-512.59,0.00034794,2]
[313885984,1707769898534,-1261.01,0.00034794,2]
[313885985,1707769898544,-500.0,0.00034794,2]
[313885986,1707769898554,-5713.47,0.00034794,2]
[313885987,1707769898563,-500.0,0.00034794,2]
[313885988,1707769898576,-500.0,0.00034794,2]
[313885989,1707769898586,-500.0,0.00034794,2]
[313885990,1707769898595,-500.0,0.00034794,2]
[313885991,1707769898605,-500.0,0.00034794,2]
[313885992,1707769898615,-5782.92,0.00034794,2]
[313885993,1707769898625,-3592.16,0.00034794,2]
[313885994,1707769898634,-500.0,0.00034794,2]
[313885995,1707769898647,-1417.96,0.00034794,2]
[313885996,1707769898656,-500.0,0.00034794,2]
[313885997,1707769898666,-1507.74,0.00034794,2]
[313885998,1707769898676,-500.0,0.00034794,2]
[313885999,1707769898685,-500.0,0.00034794,2]
[313886000,1707769898695,-500.0,0.00034794,2]
[313886001,1707769898705,-2719.11,0.00034794,2]
[313886002,1707769898714,-735.15,0.00034794,2]
[313886003,1707769898724,-1563.36,0.00034794,2]
[313886004,1707769898733,-500.0,0.00034794,2]
[313886005,1707769898743,-500.0,0.00034794,2]
[313886006,1707769898754,-500.0,0.00034794,2]
[313886007,1707769898763,-1284.95,0.00034794,2]
[313886008,1707769898773,-953.13,0.00034794,2]
[313886009,1707769898784,-500.0,0.00034794,2]
[313886010,1707769898794,-500.0,0.00034794,2]
[313886011,1707769898804,-500.0,0.00034794,2]
[313886012,1707769898814,-500.0,0.00034794,2]
[313886013,1707769898824,-503.01,0.00034794,2]
[313886014,1707769898833,-705.93,0.00034794,2]
[313886015,1707769898842,-500.0,0.00034794,2]
[313886016,1707769898851,-500.0,0.00034794,2]
[313886017,1707769898860,-2474.64,0.00034794,2]
[313886018,1707769898870,-500.0,0.00034794,2]
[313886019,1707769898880,-497.71775449,0.00034794,2]
[313886020,1707769898889,-500.0,0.00034794,2]
[313886021,1707769898899,-2229.26,0.00034794,2]
[313886022,1707769898909,-500.0,0.00034794,2]
[313886023,1707769898918,-500.0,0.00034794,2]
[313886024,1707769898928,-500.0,0.00034794,2]
[313886025,1707769898938,-500.0,0.00034794,2]
[313886026,1707769898948,-1299.67,0.00034794,2]
[313886027,1707769898957,-1347.04,0.00034794,2]
[313886028,1707769898967,-1798.72,0.00034794,2]
[313886029,1707769898977,-500.0,0.00034794,2]
[313886030,1707769898986,-1180.11,0.00034794,2]
[313886031,1707769898996,-2115.54,0.00034794,2]
[313886032,1707769899005,-513.48,0.00034794,2]
[313886033,1707769899015,-500.0,0.00034794,2]
[313886034,1707769899025,-500.0,0.00034794,2]
[313886035,1707769899034,-3264.57,0.00034794,2]
[313886036,1707769899044,-3140.53,0.00034794,2]
[313886037,1707769899054,-511.99,0.00034794,2]
[313886038,1707769899064,-500.0,0.00034794,2]
[313886039,1707769899075,-4051.49,0.00034794,2]
[313886040,1707769899087,-500.0,0.00034794,2]
[313886041,1707769899097,-1799.2,0.00034794,2]
[313886042,1707769899109,-500.0,0.00034794,2]
[313886043,1707769899119,-1680.38,0.00034794,2]
[313886044,1707769899129,-500.0,0.00034794,2]
[313886045,1707769899138,-978.39,0.00034794,2]
[313886046,1707769899214,-522.7,0.00034794,2]
[313886047,1707769899225,-500.0,0.00034794,2]
[313886048,1707769899236,-4240.45,0.00034794,2]
[313886049,1707769899246,-500.0,0.00034794,2]
[313886050,1707769899256,-500.0,0.00034794,2]
[313886051,1707769899266,-573.56,0.00034794,2]
[313886052,1707769899276,-500.0,0.00034794,2]
[313886053,1707769899286,-2397.55,0.00034794,2]
[313886054,1707769899298,-623.74193737,0.00034794,2]
[313886055,1707769899307,-200.0,0.000348,8]
[313886056,1707769899317,-282.36777954,0.000348,2]
[313886057,1707769899328,-929.21,0.000348,2]
[313886058,1707769899340,-929.21,0.000348,2]
[313886059,1707769899351,-929.21,0.000348,2]
[313886060,1707769899360,-929.21,0.000348,2]
[313886061,1707769899370,-929.21,0.000348,2]
[313886062,1707769899380,-929.21,0.000348,2]
[313886063,1707769899390,-929.21,0.000348,2]
[313886064,1707769899400,-929.21,0.000348,2]
[313886065,1707769899410,-929.21,0.000348,2]
[313886066,1707769899419,-929.21,0.000348,2]
[313886067,1707769899431,-929.21,0.000348,2]
[313886068,1707769899441,-929.21,0.000348,2]
[313886069,1707769899451,-929.21,0.000348,2]
[313886070,1707769899462,-929.21,0.000348,2]
[313886071,1707769899471,-929.21,0.000348,2]
[313886072,1707769899480,-929.21,0.000348,2]
[313886073,1707769899489,-929.21,0.000348,2]
[313886074,1707769899499,-929.21,0.000348,2]
[313886075,1707769899508,-929.21,0.000348,2]
[313886076,1707769899517,-929.21,0.000348,2]
[313886077,1707769899526,-386.728906,0.000348,2]
[313886078,1707769899536,-150.0,0.000348,8]
[313886079,1707769899545,-285.85004631,0.00034844,2]
[313886080,1707769899557,-152.0,0.00034887,4]
[313886081,1707769899567,-10000.0,0.0003489,7]
[313886082,1707769899578,-11117.83525735,0.000349,7]
[313886083,1707769899587,-9018.0041854,0.000349,4]
[313886084,1707769899596,-6235.42316757,0.000349,2]
[313886085,1707769899606,-6235.42316739,0.000349,2]
[313886086,1707769899616,-6235.42316739,0.000349,2]
[313886087,1707769899625,-6235.42316739,0.000349,2]
[313886088,1707769899634,-6235.42316739,0.000349,2]
[313886089,1707769899644,-1734.289203,0.00034931,2]
[313886090,1707769899654,-1779.641029,0.00034931,2]
[313886091,1707769899663,-3117.530794,0.00034931,2]
[313886092,1707769899672,-1998.103731,0.00034931,2]
[313886093,1707769899682,-1037.826846,0.00034931,2]
[313886094,1707769899690,-830.261477,0.00034931,2]
[313886095,1707769899699,-1598.482984,0.00034931,2]
[313886096,1707769899709,-2490.784432,0.00034931,2]
[313886097,1707769899718,-4795.448954,0.00034931,2]
[313886098,1707769899727,-500.0,0.00034987,2]
[313886099,1707769899738,-22893.0,0.0003499,2]
[313886100,1707769899749,-50000.0,0.00035,5]
[313886101,1707769899758,-15850.56192056,0.00035,7]
[313886102,1707769899767,-843.96391728,0.00035,2]
[313886103,1707769899776,-155.0,0.00035,2]
[313886104,1707769899785,-1268.63861743,0.00035,4]
[313886105,1707769899794,-391.18935678,0.00035,4]
[313886106,1707769899804,-715.64067924,0.00035,4]
[313886107,1707769899813,-1110.52801494,0.00035,14]
[313886108,1707769899823,-451.06831332,0.00035,4]
[313886109,1707769899832,-300.0,0.00035,120]
[313886110,1707769899842,-533.15122327,0.00035,2]
[313886111,1707769899851,-556.85836537,0.00035,4]
[313886112,1707769899861,-1028.0,0.00035,5]
[313886113,1707769899870,-10000.0,0.00035,7]
[313886114,1707769899880,-641.71637281,0.00035,3]
[313886115,1707769899890,-8940.86,0.00035,3]
[313886116,1707769899900,-200.0,0.00035,8]
[313886117,1707769899910,-3000.0,0.00035,2]
[313886118,1707769899920,-1620.44240592,0.00035,2]
[313886119,1707769899930,-1620.44240592,0.00035,2]
[313886120,1707769899939,-1623.00552714,0.00035,2]
[313886121,1707769899948,-1623.00552714,0.00035,2]
[313886122,1707769899957,-200.0,0.00035,2]
[313886123,1707769899967,-84354.21282696,0.00035,2]
[313886124,1707769899977,-84354.21282696,0.00035,2]
[313886125,1707769899986,-84354.21282696,0.00035,2]
[313886126,1707769899995,-84354.21282696,0.00035,2]
[313886127,1707769900005,-3000.0,0.00035,2]
[313886128,1707769900014,-200.0,0.00035,7]
[313886129,1707769900024,-202.04343997,0.00035,7]
[313886130,1707769900035,-200.0,0.00035,7]
[313886131,1707769900045,-316.18,0.00035,2]
[313886132,1707769900054,-64264.0,0.00035,3]
[313886133,1707769900065,-2515.06829709,0.00035,2]
[313886134,1707769900076,-2515.06829709,0.00035,2]
[313886135,1707769900086,-2515.06829709,0.00035,2]
[313886136,1707769900097,-2515.06829709,0.00035,2]
[313886137,1707769900108,-2515.06829709,0.00035,2]
[313886138,1707769900118,-2515.06829709,0.00035,2]
[313886139,1707769900127,-2515.06829709,0.00035,2]
[313886140,1707769900136,-2515.06829709,0.00035,2]
[313886141,1707769900145,-2515.06829709,0.00035,2]
[313886142,1707769900155,-2515.06829709,0.00035,2]
[313886143,1707769900166,-2515.06829709,0.00035,2]
[313886144,1707769900176,-2515.06829709,0.00035,2]
[313886145,1707769900188,-2515.06829709,0.00035,2]
[313886146,1707769900198,-2515.06829709,0.00035,2]
[313886147,1707769900209,-150.0,0.00035,8]
[313886148,1707769900219,-2515.06829709,0.00035,2]
[313886149,1707769900229,-2515.06829709,0.00035,2]
[313886150,1707769900238,-2515.06829709,0.00035,2]
[313886151,1707769900249,-2515.06829709,0.00035,2]
[313886152,1707769900258,-2515.06829709,0.00035,2]
[313886153,1707769900268,-2515.06829709,0.00035,2]
[313886154,1707769900278,-2515.06829709,0.00035,2]
[313886155,1707769900289,-2515.06829709,0.00035,2]
[313886156,1707769900300,-2515.06829709,0.00035,2]
[313886157,1707769900310,-2515.06829709,0.00035,2]
[313886158,1707769900321,-2515.06829709,0.00035,2]
[313886159,1707769900331,-2515.06829709,0.00035,2]
[313886160,1707769900341,-2515.06829709,0.00035,2]
[313886161,1707769900350,-2515.06829709,0.00035,2]
[313886162,1707769900359,-2515.06829709,0.00035,2]
[313886163,1707769900369,-2515.06829709,0.00035,2]
[313886164,1707769900379,-2515.06829709,0.00035,2]
[313886165,1707769900389,-2515.06829709,0.00035,2]
[313886166,1707769900398,-2515.06829709,0.00035,2]
[313886167,1707769900407,-2515.06829709,0.00035,2]
[313886168,1707769900417,-2515.06829709,0.00035,2]
[313886169,1707769900427,-2515.06829709,0.00035,2]
[313886170,1707769900436,-2515.06829709,0.00035,2]
[313886171,1707769900446,-2515.06829709,0.00035,2]
[313886172,1707769900455,-2515.06829709,0.00035,2]
[313886173,1707769900464,-2515.06829709,0.00035,2]
[313886174,1707769900474,-2515.06829709,0.00035,2]
[313886175,1707769900483,-2515.06829709,0.00035,2]
[313886176,1707769900492,-2515.06829709,0.00035,2]
[313886177,1707769900502,-2515.06829709,0.00035,2]
[313886178,1707769900511,-2515.06829709,0.00035,2]
[313886179,1707769900522,-2515.06829709,0.00035,2]
[313886180,1707769900531,-2515.06829709,0.00035,2]
[313886181,1707769900541,-2515.06829709,0.00035,2]
[313886182,1707769900550,-2515.06829709,0.00035,2]
[313886183,1707769900560,-2515.06829709,0.00035,2]
[313886184,1707769900573,-2515.06829709,0.00035,2]
[313886185,1707769900582,-2515.06829709,0.00035,2]
[313886186,1707769900591,-2515.06829709,0.00035,2]
[313886187,1707769900600,-2515.06829709,0.00035,2]
[313886188,1707769900610,-2515.06829709,0.00035,2]
[313886189,1707769900619,-2515.06829709,0.00035,2]
[313886190,1707769900628,-2515.06829709,0.00035,2]
[313886191,1707769900638,-2515.06829709,0.00035,2]
[313886192,1707769900649,-2515.06829709,0.00035,2]
[313886193,1707769900658,-2515.06829709,0.00035,2]
[313886194,1707769900669,-2515.06829709,0.00035,2]
[313886195,1707769900679,-2515.06829709,0.00035,2]
[313886196,1707769900690,-2515.06829709,0.00035,2]
[313886197,1707769900699,-2515.06829709,0.00035,2]
[313886198,1707769900710,-2515.06829709,0.00035,2]
[313886199,1707769900719,-2515.06829709,0.00035,2]
[313886200,1707769900731,-2515.06829709,0.00035,2]
[313886201,1707769900742,-2515.06829709,0.00035,2]
[313886202,1707769900751,-2515.06829709,0.00035,2]
[313886203,1707769900761,-2515.06829709,0.00035,2]
[313886204,1707769900771,-2515.06829709,0.00035,2]
[313886205,1707769900781,-2515.06829709,0.00035,2]
[313886206,1707769900791,-2515.06829709,0.00035,2]
[313886207,1707769900800,-2515.06829709,0.00035,2]
[313886208,1707769900811,-2515.06829709,0.00035,2]
[313886209,1707769900821,-2515.06829709,0.00035,2]
[313886210,1707769900832,-2515.06829709,0.00035,2]
[313886211,1707769900841,-2515.06829709,0.00035,2]
[313886212,1707769900850,-2515.06829709,0.00035,2]
[313886213,1707769900860,-2515.06829709,0.00035,2]
[313886214,1707769900869,-2515.06829709,0.00035,2]
[313886215,1707769900879,-2515.06829709,0.00035,2]
[313886216,1707769900888,-2515.06829709,0.00035,2]
[313886217,1707769900898,-2515.06829709,0.00035,2]
[313886218,1707769900907,-2515.06829709,0.00035,2]
[313886219,1707769900917,-2515.06829709,0.00035,2]
[313886220,1707769900926,-2515.06829709,0.00035,2]
[313886221,1707769900936,-2515.06829709,0.00035,2]
[313886222,1707769900945,-2515.06829709,0.00035,2]
[313886223,1707769900955,-2515.06829709,0.00035,2]
[313886224,1707769900964,-2515.06829709,0.00035,2]
[313886225,1707769900974,-2515.06829709,0.00035,2]
[313886226,1707769900983,-2515.06829709,0.00035,2]
[313886227,1707769900993,-2515.06829709,0.00035,2]
[313886228,1707769901003,-20100.51,0.00035,3]
[313886229,1707769901013,-150.0,0.00035,112]
[313886230,1707769901024,-300.0,0.00035,36]
[313886231,1707769901033,-32603.08319894,0.00035068,2]
[313886232,1707769901042,-2167.861503,0.00035068,2]
[313886233,1707769901052,-2224.551286,0.00035068,2]
[313886234,1707769901062,-3896.913493,0.00035068,2]
[313886235,1707769901071,-500.0,0.00035068,2]
[313886236,1707769901082,-500.0,0.00035068,2]
[313886237,1707769901093,-500.0,0.00035068,2]
[313886238,1707769901102,-500.0,0.00035068,2]
[313886239,1707769901113,-435.0852311,0.00035068,2]
[313886240,1707769901123,-2497.629663,0.00035068,2]
[313886241,1707769901132,-1297.283557,0.00035068,2]
[313886242,1707769901142,-500.0,0.00035068,2]
[313886243,1707769901151,-1037.826846,0.00035068,2]
[313886244,1707769901162,-1998.103731,0.00035068,2]
[313886245,1707769901173,-500.0,0.00035068,2]
[313886246,1707769901182,-500.0,0.00035068,2]
[313886247,1707769901193,-500.0,0.00035068,2]
[313886248,1707769901202,-3113.48054,0.00035068,2]
[313886249,1707769901211,-5994.311192,0.00035068,2]
[313886250,1707769901221,-500.0,0.00035068,2]
[313886251,1707769901230,-500.0,0.00035068,2]
[313886252,1707769901239,-500.0,0.00035068,2]
[313886253,1707769901249,-500.0,0.00035068,2]
[313886254,1707769901259,-500.0,0.00035068,2]
[313886255,1707769901268,-500.0,0.00035068,2]
[313886256,1707769901278,-204.81195228,0.00035068,2]
[313886257,1707769901287,-500.0,0.00035068,2]
[313886258,1707769901297,-500.0,0.00035068,2]
[313886259,1707769901306,-500.0,0.00035068,2]
[313886260,1707769901315,-500.0,0.00035068,2]
[313886261,1707769901324,-500.0,0.00035068,2]
[313886262,1707769901334,-500.0,0.00035068,2]
[313886263,1707769901344,-497.74667166,0.00035068,2]
[313886264,1707769901353,-352.1,0.00035068,2]
[313886265,1707769901363,-500.0,0.00035068,2]
[313886266,1707769901373,-293.8397445,0.00035068,2]
[313886267,1707769901383,-500.0,0.00035068,2]
[313886268,1707769901394,-500.0,0.00035068,2]
[313886269,1707769901403,-500.0,0.00035068,7]
[313886270,1707769901412,-500.0,0.00035068,2]
[313886271,1707769901421,-500.0,0.00035068,2]
[313886272,1707769901431,-500.0,0.00035068,2]
[313886273,1707769901441,-500.0,0.00035068,2]
[313886274,1707769901450,-966.32,0.00035068,2]
[313886275,1707769901459,-500.0,0.00035068,2]
[313886276,1707769901468,-500.0,0.00035068,2]
[313886277,1707769901477,-500.0,0.00035068,2]
[313886278,1707769901487,-500.0,0.00035068,2]
[313886279,1707769901495,-500.0,0.00035068,2]
[313886280,1707769901504,-500.0,0.00035068,2]
[313886281,1707769901513,-807.54,0.00035068,2]
[313886282,1707769901522,-500.0,0.00035068,2]
[313886283,1707769901531,-500.0,0.00035068,2]
[313886284,1707769901540,-500.0,0.00035068,2]
[313886285,1707769901549,-191.61,0.00035068,2]
[313886286,1707769901558,-500.0,0.00035068,2]
[313886287,1707769901569,-500.0,0.00035068,2]
[313886288,1707769901579,-509.91,0.00035068,2]
[313886289,1707769901588,-500.0,0.00035068,2]
[313886290,1707769901597,-500.0,0.00035068,2]
[313886291,1707769901606,-500.0,0.00035068,2]
[313886292,1707769901615,-245.49,0.00035068,2]
[313886293,1707769901624,-500.0,0.00035068,2]
[313886294,1707769901633,-495.22,0.00035068,2]
[313886295,1707769901642,-368.39492336,0.00035068,2]
[313886296,1707769901652,-500.0,0.00035068,2]
[313886297,1707769901664,-500.22,0.00035068,2]
[313886298,1707769901674,-500.0,0.00035068,2]
[313886299,1707769901683,-500.0,0.00035068,2]
[313886300,1707769901693,-500.0,0.00035068,2]
[313886301,1707769901703,-500.0,0.00035068,2]
[313886302,1707769901713,-580.77,0.00035068,2]
[313886303,1707769901722,-500.0,0.00035068,2]
[313886304,1707769901731,-952.06,0.00035068,2]
[313886305,1707769901742,-500.0,0.00035068,2]
[313886306,1707769901751,-500.0,0.00035068,2]
[313886307,1707769901762,-500.0,0.00035068,2]
[313886308,1707769901771,-500.0,0.00035068,2]
[313886309,1707769901780,-500.0,0.00035068,2]
[313886310,1707769901789,-538.47,0.00035068,2]
[313886311,1707769901798,-500.0,0.00035068,2]
[313886312,1707769901808,-500.0,0.00035068,2]
[313886313,1707769901817,-603.03,0.00035068,2]
[313886314,1707769901826,-1235.07,0.00035068,2]
[313886315,1707769901837,-545.34441653,0.00035068,2]
[313886316,1707769901846,-500.0,0.00035068,2]
[313886317,1707769901855,-500.0,0.00035068,2]
[313886318,1707769901865,-522.01756192,0.00035068,2]
[313886319,1707769901875,-500.0,0.00035068,2]
[313886320,1707769901884,-500.0,0.00035068,2]
[313886321,1707769901894,-500.0,0.00035068,2]
[313886322,1707769901903,-1080.75,0.00035068,2]
[313886323,1707769901912,-500.0,0.00035068,2]
[313886324,1707769901922,-728.15,0.00035068,2]
[313886325,1707769901932,-500.0,0.00035068,2]
[313886326,1707769901941,-796.14,0.00035068,2]
[313886327,1707769901951,-588.98,0.00035068,2]
[313886328,1707769901961,-5409.76,0.00035068,2]
[313886329,1707769901970,-500.0,0.00035068,2]